bitfinex/quotes_ETHUSD_20250720
["timestamp","ask_amount","ask_price","bid_price","bid_amount"]
[1753052460266,7.12371624,3736.2,3736.1,1e-08]
[1753052460571,11.47371624,3736.2,3736.1,1e-08]
[1753052460729,11.47371624,3736.2,3735.1,0.02]
[1753052460730,6.22723281,3735.2,3735.1,0.02]
[1753052461063,6.22723281,3735.2,3735.1,1e-08]
[1753052461064,10.57723281,3735.2,3735.1,1e-08]
[1753052461367,11.01783281,3735.2,3735.1,1e-08]
[1753052461573,6.22723281,3735.2,3735.1,1e-08]
[1753052461784,0.4923,3735.6,3735.1,0.47230001]
[1753052461930,4.375,3735.5,3735.2,1.2365]
[1753052462124,4.375,3735.5,3735.3,0.4723]
[1753052462343,4.375,3735.5,3735.4,0.4723]
[1753052462545,0.803408,3737.1,3735.4,0.4723]
[1753052462546,0.1336,3735.7,3735.5,0.8247]
[1753052462754,0.1336,3735.7,3735.1,1e-08]
[1753052462755,0.24738025,3738.0,3735.7,0.8247]
[1753052462961,0.7642,3738.1,3736.0,0.8247]
[1753052462962,0.1336,3736.5,3736.0,0.8247]
[1753052463237,4.377,3737.9,3736.0,0.8247]
[1753052463238,4.377,3737.9,3736.2,3.47651624]
[1753052463239,0.1336,3736.6,3736.2,3.47651624]
[1753052463567,0.1336,3736.8,3736.3,0.88054162]
[1753052463765,0.1336,3736.8,3736.4,0.4723]
[1753052464269,0.6,3737.7,3736.7,0.7683]
[1753052464467,4.5166,3737.6,3736.7,0.9019]
[1753052464669,4.5166,3737.6,3737.1,2.67582098]
[1753052464964,0.1336,3737.6,3737.2,1.2578]
[1753052465157,0.1336,3737.6,3737.3,0.40672625]
[1753052465351,0.1336,3737.6,3737.3,0.87902625]
[1753052465558,0.1336,3737.6,3737.4,0.4723]
[1753052465984,0.1536,3737.9,3737.3,2.67572014]
[1753052466188,0.1536,3737.9,3737.5,0.4723]
[1753052466393,0.1536,3737.9,3737.6,0.4723]
[1753052466602,0.02,3737.9,3737.8,5.67537053]
[1753052466891,0.02,3738.9,3738.2,0.7704]
[1753052467048,0.1336,3738.5,3738.2,0.7704]
[1753052467249,0.1336,3738.5,3738.3,0.4723]
[1753052467650,0.1336,3738.5,3738.4,0.4723]
[1753052468613,0.02,3738.9,3738.4,0.4723]
[1753052468815,0.1336,3738.7,3738.5,0.4723]
[1753052469121,0.02,3738.9,3738.6,0.4723]
[1753052469607,0.02,3738.9,3738.7,0.4723]
[1753052469808,0.02,3738.9,3738.8,1.2541]
[1753052470185,0.02,3738.9,3738.8,3.92875496]
[1753052470371,0.02,3738.9,3738.8,4.61585365]
[1753052471608,0.24762842,3739.3,3739.0,0.55]
[1753052471813,0.002,3739.4,3739.3,2.67429732]
[1753052471973,0.002,3739.4,3739.3,3.15737393]
[1753052472173,0.002,3739.4,3739.3,4.27163063]
[1753052474814,0.002,3739.4,3739.3,7.27163063]
[1753052474989,0.002,3739.4,3739.3,7.24488766]
[1753052475513,0.022,3740.9,3739.8,2.67393978]
[1753052475685,0.022,3740.9,3739.8,3.50077917]
[1753052476018,0.022,3740.9,3739.8,5.02996002]
[1753052476706,0.002,3740.2,3739.8,5.02996002]
[1753052476904,0.002,3740.2,3739.8,2.35602024]
[1753052477229,0.002,3740.2,3739.8,9.41696002]
[1753052477384,0.002,3740.2,3739.8,9.39022063]
[1753052479713,0.002,3740.2,3739.8,9.52382063]
[1753052481803,0.002,3740.2,3740.1,3.4937253]
[1753052482116,0.002,3740.2,3740.1,8.84622809]
[1753052482431,0.002,3740.2,3740.1,9.29179084]
[1753052482613,0.022,3740.9,3740.8,3.49322497]
[1753052482821,0.022,3740.9,3740.8,10.86822497]
[1753052483027,0.022,3740.9,3740.8,11.34052497]
[1753052483327,0.022,3740.9,3740.8,12.74190838]
[1753052483533,0.022,3740.9,3740.8,13.29190838]
[1753052484942,0.02,3741.9,3741.8,3.46471055]
[1753052485250,0.02,3741.9,3741.8,8.06292866]
[1753052485549,0.02,3741.9,3741.8,8.50850356]
[1753052485701,0.02,3741.9,3741.8,9.62661351]
[1753052487498,0.02,3741.9,3741.8,13.17661351]
[1753052488730,0.02,3742.9,3742.7,2.6718679]
[1753052488958,0.02,3742.9,3742.7,10.84378657]
[1753052489273,0.02,3742.9,3742.7,11.2587679]
[1753052489572,0.02,3742.9,3742.7,12.6518402]
[1753052491863,0.02,3742.9,3742.7,8.4246402]
[1753052492067,0.02,3742.9,3742.7,12.7746402]
[1753052494030,0.02,3742.9,3742.7,0.918]
[1753052494218,0.02,3742.9,3742.7,4.344]
[1753052494420,0.02,3742.9,3742.3,3.0]
[1753052494746,0.02,3742.9,3742.5,3.0]
[1753052494933,0.02,3742.9,3742.6,4.343]
[1753052495135,0.02,3742.9,3742.2,0.84272224]
[1753052495343,2.67209324,3742.4,3741.8,0.19949301]
[1753052495525,0.464,3742.3,3741.0,0.7891]
[1753052495725,2.67225068,3742.2,3741.2,3.0]
[1753052496022,0.464,3742.3,3741.3,2.67281932]
[1753052496225,0.6321,3742.7,3741.4,4.36872796]
[1753052496525,3.30398313,3742.7,3741.6,2.67262601]
[1753052496739,3.30398313,3742.7,3741.7,4.342]
[1753052496936,3.30398313,3742.7,3741.7,4.341]
[1753052496937,0.464,3742.6,3741.7,4.341]
[1753052497228,2.67201783,3742.5,3741.7,4.341]
[1753052497451,0.84081178,3742.4,3741.7,4.34]
[1753052497629,3.13610396,3742.4,3741.7,4.34]
[1753052498058,2.6721746,3742.3,3741.7,4.34]
[1753052498360,0.6321,3742.7,3741.7,4.34]
[1753052498530,0.464,3742.6,3741.7,4.34]
[1753052499229,0.464,3742.6,3741.8,2.67249116]
[1753052499662,0.464,3742.6,3741.9,2.67243639]
[1753052499966,0.464,3742.6,3741.8,2.67249285]
[1753052500263,0.6321,3742.7,3741.7,4.34]
[1753052500472,0.6321,3742.7,3741.8,2.67249205]
[1753052500630,0.002,3742.8,3742.5,2.67200852]
[1753052500828,0.002,3742.8,3742.4,4.332]
[1753052501160,0.002,3742.8,3742.4,7.00406774]
[1753052501323,0.002,3742.8,3742.5,0.4684201]
[1753052501527,0.002,3742.8,3742.6,2.67193929]
[1753052501727,0.002,3742.8,3742.5,0.0267201]
[1753052502066,0.002,3742.8,3742.6,4.331]
[1753052503084,0.002,3742.8,3742.7,4.33]
[1753052503229,0.002,3742.8,3742.4,0.4417]
[1753052503598,0.002,3742.8,3742.5,4.328]
[1753052503749,0.002,3742.8,3742.1,0.4417]
[1753052503953,0.002,3742.8,3741.6,2.67262742]
[1753052503954,0.6321,3742.7,3741.8,2.67245615]
[1753052504185,2.67215348,3742.3,3742.2,0.1336]
[1753052504495,3.13615348,3742.3,3741.7,0.1336]
[1753052504696,0.464,3742.3,3741.7,0.1336]
[1753052505056,3.13615574,3742.3,3741.7,0.1336]
[1753052505662,0.6321,3742.1,3741.7,0.1336]
[1753052505958,2.67255302,3741.8,3741.5,0.1336]
[1753052506199,0.6321,3741.2,3740.2,6.409]
[1753052506358,2.67302096,3741.1,3740.8,0.1336]
[1753052506708,0.464,3741.0,3740.6,0.1336]
[1753052506991,2.6732875,3740.8,3740.6,0.1336]
[1753052507329,0.464,3740.9,3740.6,0.1336]
[1753052507999,0.7657,3741.2,3740.6,0.1336]
[1753052509386,2.67306193,3741.1,3740.6,0.1336]
[1753052509914,0.464,3741.0,3740.6,0.1336]
[1753052510625,1.1559508,3741.2,3740.6,0.1336]
[1753052510807,0.464,3740.9,3740.6,0.1336]
[1753052511177,0.5976,3740.8,3740.2,0.1336]
[1753052511512,0.1336,3740.8,3740.2,0.1336]
[1753052511690,0.1336,3741.1,3740.5,0.1336]
[1753052513284,0.6321,3741.8,3741.1,2.67300306]
[1753052513476,0.7657,3741.8,3740.9,3.2751663]
[1753052513698,0.1336,3741.8,3741.2,2.80653685]
[1753052513929,0.1336,3741.8,3741.2,4.4426]
[1753052515089,0.1336,3741.8,3741.2,0.1336]
[1753052515297,0.6321,3741.4,3741.0,4.305]
[1753052515707,0.6321,3741.4,3740.9,4.4396]
[1753052516239,2.67295893,3741.2,3740.9,0.1336]
[1753052516396,0.464,3741.2,3740.7,4.306]
[1753052516601,0.464,3741.2,3740.7,4.4396]
[1753052516922,3.13694536,3741.2,3740.7,0.1336]
[1753052517099,0.464,3741.2,3740.7,0.1336]
[1753052517425,3.43827143,3741.8,3741.1,0.1336]
[1753052517832,0.7657,3741.8,3741.1,0.1336]
[1753052518935,0.002,3742.0,3741.2,3.88713177]
[1753052519096,0.002,3742.0,3741.5,0.1336]
[1753052520239,0.4726,3741.9,3741.5,0.1336]
[1753052520438,0.7657,3741.8,3741.2,0.1336]
[1753052520594,2.67264813,3741.7,3740.4,4.297]
[1753052520933,2.67264813,3741.7,3740.7,0.1336]
[1753052520934,0.6321,3741.2,3740.7,0.1336]
[1753052521143,0.6321,3741.2,3740.4,0.1336]
[1753052521144,2.67311341,3741.0,3740.4,0.1336]
[1753052521296,2.67311341,3741.0,3740.1,0.021]
[1753052521297,2.80687129,3740.8,3740.2,0.1336]
[1753052521498,2.6733679,3740.6,3740.2,0.1336]
[1753052521700,2.6733679,3740.6,3740.1,0.021]
[1753052521701,2.67365381,3740.2,3740.1,0.021]
[1753052521932,6.01918492,3740.2,3740.1,0.021]
[1753052522137,6.01918492,3740.2,3739.8,0.001]
[1753052522138,2.67386828,3739.9,3739.8,0.001]
[1753052522338,6.30596828,3739.9,3739.8,0.001]
[1753052522743,7.32856828,3739.9,3739.8,0.001]
[1753052522924,7.32856828,3739.9,3739.1,0.02]
[1753052522925,0.6321,3739.4,3739.1,0.02]
[1753052523128,9.78072112,3739.2,3739.1,0.02]
[1753052523511,10.80332112,3739.2,3739.1,0.02]
[1753052524039,11.43542112,3739.2,3739.1,0.02]
[1753052524217,3.8568265,3738.7,3738.6,0.001]
[1753052524416,11.1598265,3738.7,3738.6,0.001]
[1753052524620,12.06197588,3738.7,3738.6,0.001]
[1753052525141,7.75897588,3738.7,3738.6,0.001]
[1753052525304,11.0834265,3738.7,3738.6,0.001]
[1753052525640,4.303,3738.9,3738.6,0.001]
[1753052525849,0.1336,3738.8,3738.6,0.001]
[1753052526161,0.1336,3739.0,3738.6,0.001]
[1753052526368,0.4726,3738.8,3738.6,0.001]
[1753052526857,3.1472727,3738.8,3738.6,0.001]
[1753052527060,1.06813634,3738.8,3738.6,0.001]
[1753052527225,3.30619476,3739.6,3738.6,0.001]
[1753052527226,0.4726,3739.4,3738.6,0.001]
[1753052527561,3.1336,3739.2,3738.6,0.001]
[1753052527731,4.303,3739.1,3738.6,0.001]
[1753052528673,5.67431329,3739.3,3738.6,0.001]
[1753052528674,0.1336,3738.7,3738.6,0.001]
[1753052528879,1.1821,3739.6,3738.6,0.001]
[1753052528880,0.1336,3738.8,3738.6,0.001]
[1753052529083,4.301,3739.1,3738.6,0.1346]
[1753052529897,0.1336,3739.2,3738.7,0.48124726]
[1753052530177,0.1336,3740.5,3739.8,2.67392379]
[1753052530380,4.4336,3740.7,3739.7,0.4545]
[1753052530541,7.10694623,3740.7,3739.7,0.4545]
[1753052530736,0.71269462,3740.6,3740.1,0.1336]
[1753052530941,0.71269462,3740.6,3739.3,0.4545]
[1753052530942,0.4726,3740.5,3739.3,0.4545]
[1753052531180,0.1336,3740.3,3739.6,0.1336]
[1753052531583,2.67383671,3740.0,3739.1,0.8034]
[1753052531874,2.80743671,3740.0,3739.4,0.1336]
[1753052532093,3.20044801,3740.0,3739.4,0.1336]
[1753052532310,0.5266113,3740.0,3739.4,0.1336]
[1753052533156,0.1336,3740.0,3739.4,2.80776034]
[1753052533357,2.67373466,3740.1,3739.8,0.1336]
[1753052533568,2.67373466,3740.1,3739.3,0.4545]
[1753052533792,4.4346,3740.3,3739.6,0.1336]
[1753052534111,4.301,3740.5,3739.9,0.1336]
[1753052534300,3.3843197,3740.4,3739.9,0.1336]
[1753052534479,0.71079076,3740.4,3739.9,0.1336]
[1753052534678,0.1336,3740.6,3740.0,0.4545]
[1753052534679,4.301,3740.6,3740.0,0.4545]
[1753052534878,4.301,3740.6,3740.1,0.1336]
[1753052535209,4.301,3740.7,3740.2,0.4545]
[1753052535577,4.4336,3740.8,3740.2,0.4545]
[1753052535974,0.1336,3740.8,3740.2,0.4545]
[1753052536180,0.02,3740.9,3740.7,0.1336]
[1753052536406,0.02,3740.9,3740.7,0.16033296]
[1753052536618,0.02,3740.9,3740.8,3.95702497]
[1753052536901,0.02,3740.9,3740.7,0.1336]
[1753052537876,0.6521,3740.9,3740.7,0.1336]
[1753052538074,0.6521,3740.9,3739.4,0.001]
[1753052538075,3.0,3740.6,3739.4,0.001]
[1753052538328,0.1336,3740.2,3739.4,0.001]
[1753052538502,0.55,3740.5,3739.4,0.001]
[1753052538503,2.67408202,3739.7,3739.4,0.001]
[1753052538666,0.1336,3739.9,3739.4,0.001]
[1753052538864,0.6321,3740.0,3739.4,0.001]
[1753052538865,2.67415429,3739.5,3739.4,0.001]
[1753052539069,3.14673888,3739.6,3739.4,0.001]
[1753052539309,2.80775429,3739.5,3739.4,0.001]
[1753052540303,0.1336,3739.5,3739.4,0.001]
[1753052540509,2.80775429,3739.5,3739.4,0.001]
[1753052541398,6.91245429,3739.5,3739.4,0.001]
[1753052541585,2.6747265,3738.7,3738.3,0.1336]
[1753052541777,2.6747265,3738.7,3738.0,0.1336]
[1753052541778,6.9877265,3738.7,3738.0,0.1336]
[1753052542016,10.4603265,3738.7,3738.0,0.1336]
[1753052542375,0.6321,3740.8,3738.7,3.1515]
[1753052542574,0.6321,3741.3,3740.1,0.8079]
[1753052542885,0.6321,3741.3,3740.5,0.1336]
[1753052543081,0.1336,3741.4,3740.6,0.02673367]
[1753052543285,2.80640908,3741.4,3740.7,0.5881]
[1753052543496,0.1336,3741.4,3740.7,0.1336]
[1753052544010,2.80641831,3741.4,3740.7,0.1336]
[1753052544379,2.67290236,3741.3,3740.7,0.1336]
[1753052544578,0.1336,3741.4,3740.7,0.1336]
[1753052545007,2.67291633,3741.3,3740.7,0.1336]
[1753052545177,0.1336,3741.4,3740.7,0.1336]
[1753052545373,2.67293799,3741.3,3740.7,0.1336]
[1753052545598,2.69316807,3740.9,3740.5,0.1336]
[1753052545800,0.02,3740.9,3740.5,0.1336]
[1753052546305,2.67322932,3740.8,3740.5,0.1336]
[1753052546919,2.6733315,3740.7,3740.5,0.1336]
[1753052547100,2.67324196,3740.8,3740.5,0.1336]
[1753052547407,0.02,3740.9,3740.6,0.4545]
[1753052547610,0.02,3740.9,3740.7,0.5881]
[1753052547771,0.02,3740.9,3740.8,0.50123224]
[1753052548169,0.02,3740.9,3740.8,0.02673224]
[1753052548377,0.02,3740.9,3740.7,0.1336]
[1753052549197,0.02,3740.9,3740.1,0.8079]
[1753052549198,0.4904,3740.9,3740.1,0.8079]
[1753052549397,0.1336,3740.8,3740.1,0.9415]
[1753052549997,2.80682809,3740.8,3740.1,0.9415]
[1753052550201,0.4704,3740.7,3739.3,0.4745]
[1753052550402,2.6736561,3740.2,3739.3,0.4745]
[1753052550734,2.67363383,3740.3,3739.3,0.4745]
[1753052550944,7.00652233,3740.4,3739.3,0.4745]
[1753052551106,7.00652233,3740.4,3739.4,0.02674225]
[1753052551107,7.00657131,3740.4,3739.4,0.02674225]
[1753052551303,7.00657131,3740.4,3739.4,0.43169423]
[1753052551304,2.67358233,3740.3,3739.4,0.43169423]
[1753052551502,2.67370772,3740.2,3739.4,0.43169423]
[1753052551909,2.67370772,3740.2,3739.3,0.4745]
[1753052552138,3.0,3740.3,3739.3,0.4745]
[1753052552450,5.67362887,3740.3,3739.3,0.4745]
[1753052552638,2.67365938,3740.2,3739.3,0.4745]
[1753052553126,2.67373223,3740.1,3739.3,0.4745]
[1753052553296,4.1025,3740.3,3739.2,0.8157]
[1753052553497,2.67398471,3739.8,3739.2,0.8157]
[1753052553939,2.67398471,3739.8,3738.8,0.8176]
[1753052553940,4.328,3739.8,3738.8,0.8176]
[1753052554142,0.6321,3739.6,3738.6,0.001]
[1753052554542,2.6747265,3738.7,3738.6,0.001]
[1753052554745,7.0017265,3738.7,3738.6,0.001]
[1753052555640,4.327,3738.7,3738.6,0.001]
[1753052555840,0.4704,3739.5,3738.6,0.001]
[1753052556007,0.4704,3739.2,3738.6,0.001]
[1753052556213,2.67467099,3738.8,3738.6,0.001]
[1753052556760,2.6747265,3738.7,3738.6,0.001]
[1753052557463,4.326,3738.9,3738.6,0.001]
[1753052557956,3.0,3739.1,3738.6,0.001]
[1753052558164,3.0,3739.1,3738.6,0.7527]
[1753052558165,4.322,3738.8,3738.6,0.7527]
[1753052558457,3.0,3739.4,3738.7,0.4745]
[1753052558620,4.322,3739.2,3738.7,0.4745]
[1753052559229,0.6321,3740.0,3738.8,0.4745]
[1753052559466,9.08664193,3740.3,3738.8,0.4745]
[1753052559677,9.08664193,3740.3,3739.1,0.7517]
[1753052559678,4.319,3740.2,3739.1,0.7517]
[1753052559998,2.67386828,3739.9,3739.1,0.7517]
[1753052560269,2.67386828,3739.9,3739.4,0.1336]
[1753052560567,2.80742349,3740.0,3739.4,0.1336]
[1753052560764,2.67387174,3739.9,3739.4,0.1336]
[1753052561073,0.1336,3740.0,3739.4,0.1336]
[1753052561276,0.1336,3740.0,3739.4,0.6081]
[1753052561445,4.316,3739.9,3739.4,0.1336]
[1753052561644,2.67391818,3739.9,3739.4,0.1336]
[1753052561881,4.316,3739.8,3739.4,0.1336]
[1753052562055,4.314,3739.8,3739.4,0.6081]
[1753052562364,4.314,3739.8,3739.4,0.1336]
[1753052562571,6.98800087,3739.8,3739.4,0.1336]
[1753052562775,2.67415429,3739.5,3739.4,0.1336]
[1753052562931,0.6321,3739.6,3738.6,0.7925]
[1753052563135,2.67457009,3739.0,3738.6,0.001]
[1753052563342,2.67470918,3738.8,3738.6,0.001]
[1753052563572,2.6747265,3738.7,3738.6,0.001]
[1753052564195,3.82160007,3738.7,3738.6,0.001]
[1753052564498,3.2787265,3738.7,3738.6,0.001]
[1753052564879,3.26939032,3738.7,3738.6,0.001]
[1753052565085,6.81939032,3738.7,3738.6,0.001]
[1753052565598,5.79899032,3738.7,3738.6,0.001]
[1753052565761,10.11199032,3738.7,3738.6,0.001]
[1753052565957,11.21769624,3738.7,3738.6,0.001]
[1753052566173,10.58239032,3738.7,3738.6,0.001]
[1753052568874,10.57839032,3738.7,3738.6,0.001]
[1753052570223,10.57639032,3738.7,3738.6,0.001]
[1753052570383,10.1113265,3738.7,3738.6,0.001]
[1753052570587,10.5817265,3738.7,3738.6,0.001]
[1753052570788,11.1317265,3738.7,3738.6,0.001]
[1753052571589,2.67508426,3738.2,3738.1,0.02]
[1753052571795,10.61018426,3738.2,3738.1,0.02]
[1753052572116,11.08058426,3738.2,3738.1,0.02]
[1753052573380,11.63058426,3738.2,3738.1,0.02]
[1753052573614,2.67580006,3737.2,3737.1,0.02]
[1753052573818,6.97880006,3737.2,3737.1,0.02]
[1753052574016,9.97880006,3737.2,3737.1,0.02]
[1753052574220,10.44920006,3737.2,3737.1,0.02]
[1753052575482,6.14620006,3737.2,3737.1,0.02]
[1753052575724,10.44920006,3737.2,3737.1,0.02]
[1753052576513,9.97980006,3737.2,3737.1,0.02]
[1753052578189,9.97980006,3737.2,3736.5,1.3671]
[1753052578190,3.22622972,3736.6,3736.1,0.02]
[1753052578387,2.67651624,3736.2,3736.1,0.02]
[1753052578705,4.304,3736.2,3736.1,0.02]
[1753052578927,0.20124347,3738.7,3736.4,0.55]
[1753052579141,0.20124347,3738.7,3737.8,0.7533]
[1753052579336,0.20124347,3738.7,3737.9,1.10550253]
[1753052579536,0.6321,3740.0,3738.0,0.7533]
[1753052579537,4.379,3739.0,3738.0,0.7533]
[1753052579852,2.67416299,3739.5,3738.1,0.4318]
[1753052580035,4.379,3739.4,3738.1,0.4318]
[1753052580360,0.6321,3739.2,3738.0,0.7533]
[1753052580510,7.05150655,3739.1,3738.0,0.7533]
[1753052580712,0.02,3738.9,3738.0,0.7533]
[1753052580911,2.69459585,3738.9,3738.0,0.7533]
[1753052581344,2.67465598,3738.8,3738.0,0.7533]
[1753052581659,4.378,3738.7,3738.1,0.4318]
[1753052582214,4.373,3738.6,3738.1,0.4318]
[1753052582727,4.373,3738.6,3738.2,0.4318]
[1753052582929,4.373,3738.6,3738.0,0.7533]
[1753052582930,4.373,3738.6,3738.3,0.4318]
[1753052583351,4.373,3738.6,3738.0,0.7533]
[1753052583555,2.67499507,3738.4,3738.0,0.7533]
[1753052583757,7.75477102,3738.6,3737.6,0.4318]
[1753052583758,5.54195861,3738.6,3737.6,0.8255]
[1753052583916,3.0,3738.5,3737.6,0.8255]
[1753052584118,2.67572846,3737.3,3737.2,0.775]
[1753052584318,4.369,3737.3,3736.5,0.775]
[1753052584519,2.67591584,3737.1,3736.5,0.775]
[1753052584721,4.369,3737.0,3736.5,0.775]
[1753052584918,2.67557015,3737.6,3736.6,0.4318]
[1753052585122,0.55,3738.0,3736.6,0.82012425]
[1753052585320,0.55,3738.0,3736.5,1.22683385]
[1753052585321,4.369,3737.9,3736.9,0.7966]
[1753052585567,4.369,3737.9,3737.0,0.45855943]
[1753052585978,4.37,3738.3,3737.8,0.7966]
[1753052586186,4.37,3738.3,3737.9,0.02675298]
[1753052586337,0.002,3738.7,3737.3,0.7568]
[1753052586338,4.369,3738.2,3737.3,0.7568]
[1753052586514,0.4369,3738.1,3737.3,0.7568]
[1753052586768,7.05217274,3738.1,3737.3,0.7568]
[1753052587066,2.67532363,3737.9,3737.3,0.7568]
[1753052587277,4.376,3737.8,3737.3,0.7568]
[1753052587625,7.05139196,3737.8,3737.3,0.7568]
[1753052587820,4.376,3737.8,3737.3,1.1886]
[1753052588020,4.376,3737.8,3737.2,0.001]
[1753052588021,0.002,3738.7,3737.7,3.55]
[1753052588258,0.002,3738.7,3738.6,6.50589805]
[1753052588440,0.002,3738.7,3738.6,6.63949805]
[1753052588761,0.02,3738.9,3738.8,3.50575496]
[1753052588960,0.002,3739.5,3739.4,2.67422581]
[1753052589268,0.002,3739.5,3739.4,3.56252581]
[1753052589569,0.002,3739.5,3739.4,4.64475289]
[1753052589866,0.002,3739.5,3739.4,4.84961165]
[1753052592024,0.002,3739.5,3739.4,1.94378483]
[1753052592256,0.002,3739.5,3739.4,1.3201]
[1753052594460,0.002,3739.5,3739.4,1.34684225]
[1753052595167,0.002,3739.5,3739.4,3.99432581]
[1753052595892,0.002,3739.5,3739.4,1.34684225]
[1753052596206,0.002,3739.5,3739.4,1.3201]
[1753052596670,0.002,3739.5,3739.4,1.74207499]
[1753052597780,0.002,3739.5,3739.4,1.31027499]
[1753052597964,0.002,3739.5,3739.4,0.8883]
[1753052598895,0.002,3739.5,3739.4,1.3201]
[1753052600213,0.002,3739.5,3739.4,0.1336]
[1753052600497,2.67437351,3739.2,3739.0,0.1336]
[1753052600672,2.67437351,3739.2,3738.1,0.8014]
[1753052600673,1.0941,3739.1,3738.1,0.8014]
[1753052600997,0.1336,3739.0,3738.4,0.1336]
[1753052601183,2.6748696,3738.5,3738.4,0.1336]
[1753052601391,2.6748696,3738.5,3737.5,0.7715]
[1753052601392,2.67542271,3737.8,3737.5,0.7715]
[1753052601591,2.6755039,3737.7,3737.2,0.001]
[1753052601797,1.0941,3738.2,3737.6,0.1336]
[1753052601798,2.67537162,3737.8,3737.6,0.1336]
[1753052602106,2.67572846,3737.3,3737.2,0.001]
[1753052602606,7.49772846,3737.3,3737.2,0.001]
[1753052602811,7.63132846,3737.3,3737.2,0.001]
[1753052603018,2.80932846,3737.3,3737.2,0.001]
[1753052603436,0.462,3739.2,3737.2,1.226958]
[1753052603730,0.462,3739.2,3737.4,0.55]
[1753052603731,0.002,3738.6,3737.4,0.55]
[1753052603943,2.6748696,3738.5,3737.5,0.45855585]
[1753052604098,0.002,3738.6,3737.5,0.45855585]
[1753052604638,2.6748799,3738.5,3737.5,0.45855585]
[1753052605167,0.002,3738.6,3737.5,0.02675585]
[1753052605308,0.462,3738.4,3737.2,0.7684]
[1753052605513,3.13701021,3738.4,3737.2,0.7684]
[1753052605713,4.396,3738.3,3737.2,0.7684]
[1753052606123,4.0941,3738.2,3737.2,0.7684]
[1753052606329,5.67572846,3737.3,3737.2,0.001]
[1753052606544,10.70282846,3737.3,3737.2,0.001]
[1753052606743,11.16482846,3737.3,3737.2,0.001]
[1753052607047,5.67580006,3737.2,3737.1,0.021]
[1753052607244,2.6748696,3738.5,3737.1,0.021]
[1753052607412,0.462,3738.4,3737.2,0.026758]
[1753052607612,0.462,3738.4,3737.1,0.021]
[1753052607801,0.462,3738.4,3737.1,0.04775871]
[1753052607998,2.6750667,3738.3,3737.2,0.4375]
[1753052608250,7.416,3738.2,3737.2,0.4375]
[1753052608446,4.416,3738.2,3737.2,0.4375]
[1753052609033,4.415,3738.2,3737.3,3.25241794]
[1753052609328,0.002,3738.6,3737.5,2.67556262]
[1753052609527,4.413,3738.4,3737.6,0.02675513]
[1753052609840,4.413,3738.4,3737.5,0.02675585]
[1753052610047,0.002,3738.6,3737.5,0.02675585]
[1753052610346,0.002,3738.6,3737.7,2.67538599]
[1753052610543,0.002,3738.6,3737.8,0.31396418]
[1753052610852,0.002,3738.6,3737.6,0.4375]
[1753052611150,2.67681048,3738.6,3737.6,0.4375]
[1753052611347,0.6321,3738.5,3737.4,0.819]
[1753052611646,2.67520781,3738.1,3737.4,0.819]
[1753052611819,0.6321,3738.5,3737.4,0.819]
[1753052611820,4.41,3738.0,3737.4,0.819]
[1753052612916,0.6321,3738.5,3737.4,0.819]
[1753052613131,5.67502403,3738.3,3737.4,1.2565]
[1753052613442,5.67502403,3738.3,3737.8,0.1336]
[1753052613669,3.0,3738.3,3737.8,0.1336]
[1753052614007,4.402,3738.3,3737.9,0.4375]
[1753052614213,4.402,3738.3,3738.2,0.1336]
[1753052614408,0.002,3738.6,3738.2,0.1336]
[1753052614409,4.402,3738.5,3738.3,0.8155]
[1753052614608,4.402,3738.5,3738.3,1.253]
[1753052614809,4.402,3738.5,3738.4,0.1336]
[1753052615051,4.402,3738.5,3737.8,0.8155]
[1753052615252,7.07689039,3738.5,3738.0,0.1336]
[1753052615568,2.6750624,3738.3,3737.3,0.8155]
[1753052615849,3.4489,3738.4,3737.3,0.8155]
[1753052615850,3.5825,3738.4,3737.8,0.1336]
[1753052616078,0.002,3738.6,3737.9,1.3468]
[1753052616224,0.002,3739.4,3737.9,1.3468]
[1753052616225,0.002,3739.4,3739.3,2.67429732]
[1753052616422,0.002,3739.4,3739.3,3.47109732]
[1753052616645,0.002,3739.4,3739.3,5.09989378]
[1753052617521,0.002,3739.4,3739.3,5.30386137]
[1753052618652,0.002,3739.4,3739.3,5.38736483]
[1753052620149,0.002,3739.4,3739.3,5.38736549]
[1753052622835,0.002,3739.4,3739.3,9.80836549]
[1753052623040,0.002,3739.4,3739.3,9.78162252]
[1753052623878,0.002,3739.4,3739.3,12.78162252]
[1753052625078,0.002,3739.4,3739.3,9.77162252]
[1753052626001,0.002,3739.4,3739.3,1.69882184]
[1753052626289,0.002,3739.4,3739.3,0.42106835]
[1753052626647,0.002,3739.4,3739.3,0.21710076]
[1753052627241,0.002,3739.4,3739.3,3.32889808]
[1753052627490,0.002,3739.4,3739.3,3.35564105]
[1753052627695,0.002,3739.4,3739.3,0.68134373]
[1753052627903,0.002,3739.4,3739.3,1.72566274]
[1753052628104,0.002,3739.4,3739.3,4.39996006]
[1753052628612,0.002,3739.4,3739.3,1.72566274]
[1753052628783,0.002,3739.4,3739.3,4.94996006]
[1753052630999,0.002,3739.4,3739.3,8.78006006]
[1753052631204,0.002,3739.4,3739.3,8.75331709]
[1753052631620,0.002,3739.4,3739.3,8.66981633]
[1753052631918,0.002,3739.4,3739.3,8.75331406]
[1753052632219,0.002,3739.4,3739.3,8.75331411]